fUST/lending_fUST_20250813
["ID","MTS","AMOUNT","RATE_DAILY","PERIOD"]
[378954234,1755083432584,-993.75107025,0.00023306,2]
[378954236,1755083432594,-993.75107025,0.00023306,2]
[378954238,1755083432603,-993.75107025,0.00023306,2]
[378954240,1755083432612,-993.75107025,0.00023306,2]
[378954242,1755083432621,-993.75107025,0.00023306,2]
[378954244,1755083432630,-993.75107025,0.00023306,2]
[378954246,1755083432639,-993.75107025,0.00023306,2]
[378954248,1755083432649,-993.75107025,0.00023306,2]
[378954250,1755083432658,-993.75107025,0.00023306,2]
[378954252,1755083432668,-993.75107025,0.00023306,2]
[378954254,1755083432677,-993.75107025,0.00023306,2]
[378954256,1755083432686,-993.75107025,0.00023306,2]
[378954258,1755083432695,-993.75107025,0.00023306,2]
[378954260,1755083432705,-993.75107025,0.00023306,2]
[378954262,1755083432714,-993.75107025,0.00023306,2]
[378954264,1755083432723,-760.59063208,0.00023306,2]
[378954266,1755083432735,-382.22309871,0.00023306,2]
[378954268,1755083432745,-1142.81373079,0.00023306,2]
[378954270,1755083432754,-1142.81373079,0.00023306,2]
[378954272,1755083432764,-1142.81373079,0.00023306,2]
[378954274,1755083432773,-1142.81373079,0.00023306,2]
[378954276,1755083432782,-1142.81373079,0.00023306,2]
[378954278,1755083432791,-232356.80392353,0.00023307,2]
[378954541,1755083439873,-33798.71336115,0.00023307,2]
[378954543,1755083439883,-164.755636,0.00023307,10]
[378954545,1755083439893,-500.0,0.00023373,2]
[378954547,1755083439904,-500.0,0.00023373,2]
[378954549,1755083439913,-500.0,0.00023373,2]
[378954551,1755083439923,-500.0,0.00023373,2]
[378954553,1755083439932,-500.0,0.00023373,2]
[378954554,1755083439941,-633.01825312,0.00023373,2]
[378954556,1755083439950,-500.0,0.00023373,2]
[378954558,1755083439960,-306.75107835,0.00023373,2]
[378954560,1755083439969,-192.9908034,0.00023373,2]
[378954562,1755083439979,-500.0,0.00023373,2]
[378954563,1755083439988,-160.0,0.00023393,2]
[378954564,1755083439997,-843.29866057,0.00023393,2]
[378954565,1755083440007,-232.03317797,0.00023393,2]
[378954566,1755083440017,-215.55264861,0.00023393,2]
[378954567,1755083440027,-216.72950928,0.00023394,2]
[378954568,1755083440036,-160.0,0.00023394,2]
[378954569,1755083440046,-160.0,0.00023404,2]
[378954570,1755083440055,-18556.83118092,0.00023409,2]
[378954571,1755083440064,-636.0,0.00023597,2]
[378954572,1755083440073,-2151.0,0.00023597,2]
[378954573,1755083440083,-972.0,0.00023597,2]
[378954574,1755083440092,-408.0,0.00023597,2]
[378954575,1755083440102,-225.76,0.00023827,5]
[378954576,1755083440111,-319.10332167,0.00023921,2]
[378954577,1755083440120,-756.55294227,0.00023921,2]
[378954578,1755083440130,-1000.0,0.00023921,2]
[378954579,1755083440139,-843.29866057,0.00024,10]
[378954581,1755083440149,-232.03317797,0.00024,10]
[378954583,1755083440158,-1000.0,0.00024468,2]
[378954585,1755083440168,-151.0,0.0002449,4]
[378954587,1755083440177,-294.6079932,0.00024658,2]
[378954589,1755083440187,-46823.07853055,0.000248,2]
[378954593,1755083440211,-1252.65925509,0.000248,2]
[378954928,1755083443121,-4334.62702479,0.000248,2]
[378954929,1755083443134,-3014.75,0.000248,2]
[378955211,1755083446165,-45690.06482657,0.000248,2]
[378955213,1755083446178,-500.0,0.00024873,2]
[378955215,1755083446188,-500.0,0.00024873,2]
[378955217,1755083446198,-500.0,0.00024873,2]
[378955219,1755083446208,-500.0,0.00024873,2]
[378955221,1755083446217,-500.10312429,0.00024873,2]
[378955223,1755083446227,-500.0,0.00024873,2]
[378955225,1755083446237,-500.32725611,0.00024873,2]
[378955227,1755083446247,-500.0,0.00024873,2]
[378955229,1755083446256,-500.0,0.00024873,2]
[378955231,1755083446266,-500.0,0.00024873,2]
[378955234,1755083446277,-500.0,0.00024873,2]
[378955236,1755083446286,-500.0,0.00024873,2]
[378955238,1755083446296,-500.0,0.00024873,2]
[378955240,1755083446306,-500.0,0.00024873,2]
[378955242,1755083446315,-500.0,0.00024873,2]
[378955244,1755083446325,-500.0,0.00024873,2]
[378955246,1755083446334,-574.589025,0.00024873,2]
[378955248,1755083446344,-500.0,0.00024873,2]
[378955250,1755083446353,-500.0,0.00024873,2]
[378955252,1755083446363,-500.0,0.00024873,2]
[378955254,1755083446373,-500.0,0.00024873,2]
[378955256,1755083446383,-11235.0199597,0.0002488,2]
[378955258,1755083446398,-163862.68940303,0.000249,2]
[378956597,1755083496189,196.780281,0.00013699,2]
[378956630,1755083857611,313.0,0.00023,30]
[378956821,1755084529053,196.780281,0.00013699,2]
[378956949,1755084632221,-522.32389176,0.00019898,2]
[378956951,1755084632233,-471.98987529,0.00019898,2]
[378957360,1755084638132,-205.68623295,0.00019898,2]
[378957361,1755084638142,-300.0,0.00019898,2]
[378957362,1755084638152,-300.0,0.00019898,2]
[378957363,1755084638162,-300.0,0.00019898,2]
[378957364,1755084638172,-300.0,0.00019898,2]
[378957365,1755084638182,-300.0,0.00019898,2]
[378957366,1755084638191,-1200.0,0.00019898,2]
[378957367,1755084638201,-2889.44789435,0.000199,2]
[378957368,1755084638212,-13813.14631555,0.000199,2]
[378957369,1755084638222,-179.19172,0.00020198,2]
[378957370,1755084638231,-200.0,0.00020893,20]
[378957371,1755084638240,-200.0,0.00020893,20]
[378957372,1755084638250,-200.0,0.00020893,20]
[378957373,1755084638259,-200.0,0.00020893,20]
[378957374,1755084638269,-1123.5114481,0.000209,2]
[378957375,1755084638278,-9247.85529911,0.000209,2]
[378957436,1755084640081,-518.7684832,0.000209,2]
[378957438,1755084640093,-434.46740608,0.000209,2]
[378957440,1755084640105,-6043.40714377,0.000209,2]
[378957444,1755084640134,-570.88749072,0.000209,2]
[378957917,1755084646222,-33184.61417712,0.000209,2]
[378957918,1755084646233,-160.0,0.00021405,2]
[378957919,1755084646243,-160.0,0.00021405,2]
[378957920,1755084646255,-843.29866057,0.00021405,2]
[378957921,1755084646264,-232.03317797,0.00021405,2]
[378957922,1755084646274,-215.55264861,0.00021405,2]
[378957923,1755084646284,-16702.59420973,0.00021655,2]
[378957924,1755084646295,-216.72950928,0.00022555,2]
[378957925,1755084646305,-200.0,0.00022936,20]
[378957926,1755084646315,-200.0,0.00022936,20]
[378957927,1755084646325,-200.0,0.00022936,20]
[378957928,1755084646334,-200.0,0.00022936,20]
[378957929,1755084646344,-320.0,0.00022936,20]
[378957930,1755084646354,-531.61,0.00022999,5]
[378957931,1755084646366,-326.71,0.00023,2]
[378957932,1755084646376,-160.0,0.00023,2]
[378957933,1755084646387,-154.42353487,0.00023408,2]
[378957934,1755084646396,-500.0,0.00023408,2]
[378957935,1755084646406,-155.50370443,0.00023408,2]
[378957936,1755084646415,-500.0,0.00023408,2]
[378957937,1755084646425,-500.0,0.00023408,2]
[378957938,1755084646435,-500.0,0.00023408,2]
[378957939,1755084646444,-389.41126304,0.00023408,2]
[378957940,1755084646454,-500.0,0.00023408,2]
[378957941,1755084646464,-500.0,0.00023408,2]
[378957942,1755084646474,-16702.59420973,0.00023409,2]
[378957943,1755084646484,-531.61,0.00023547,5]
[378957944,1755084646493,-2151.0,0.0002374,2]
[378957945,1755084646504,-636.0,0.0002374,2]
[378957946,1755084646514,-972.0,0.0002374,2]
[378957947,1755084646524,-180.608,0.00023813,5]
[378957948,1755084646534,-216.72950928,0.00024,7]
[378957949,1755084646544,-843.29866057,0.00024,7]
[378957950,1755084646553,-531.61,0.00024095,5]
[378957951,1755084646563,-531.61,0.00024643,5]
[378957952,1755084646573,-1933.17,0.0002479,10]
[378957953,1755084646583,-610.69698526,0.000248,7]
[378957954,1755084646592,-39322.569859,0.000248,2]
[378957955,1755084646602,-6503.44162312,0.000248,2]
[378957956,1755084646613,-33705.0598791,0.00024878,2]
[378957957,1755084646623,-500.0,0.00024887,2]
[378957958,1755084646633,-500.0,0.00024887,2]
[378957959,1755084646643,-1054.43788437,0.00024887,2]
[378957960,1755084646652,-1054.43788437,0.00024887,2]
[378957961,1755084646662,-225.86814633,0.00024887,2]
[378957962,1755084646671,-1054.43788437,0.00024887,2]
[378957963,1755084646680,-1054.43788437,0.00024887,2]
[378957964,1755084646691,-1054.43788437,0.00024887,2]
[378957965,1755084646700,-1054.43788437,0.00024887,2]
[378957966,1755084646710,-1054.43788437,0.00024887,2]
[378957967,1755084646719,-1054.43788437,0.00024887,2]
[378957968,1755084646729,-1054.43788437,0.00024887,2]
[378957969,1755084646739,-1054.43788437,0.00024887,2]
[378957970,1755084646749,-1054.43788437,0.00024887,2]
[378957971,1755084646764,-1054.43788437,0.00024887,2]
[378957972,1755084646775,-1054.43788437,0.00024887,2]
[378957973,1755084646784,-1054.43788437,0.00024887,2]
[378957974,1755084646794,-1107.15977859,0.00024887,2]
[378957975,1755084646805,-1107.15977859,0.00024887,2]
[378957976,1755084646815,-1107.15977859,0.00024887,2]
[378957977,1755084646824,-1107.15977859,0.00024887,2]
[378957978,1755084646835,-1107.15977859,0.00024887,2]
[378957979,1755084646844,-1107.15977859,0.00024887,2]
[378957980,1755084646854,-1107.15977859,0.00024887,2]
[378957981,1755084646864,-1107.15977859,0.00024887,2]
[378957982,1755084646874,-1107.15977859,0.00024887,2]
[378957983,1755084646884,-278028.46137943,0.00024888,2]
[378957984,1755084646894,-150.95,0.000249,7]
[378957985,1755084646904,-556.62684945,0.000249,3]
[378957986,1755084646915,-151.0,0.000249,10]
[378957987,1755084646927,-115881.30159179,0.000249,2]
[378959721,1755085481891,-1024.17007521,0.00019116,2]
[378959828,1755085832363,-429.14,0.00018364,2]
[378959831,1755085832375,-452.98438446,0.00018364,2]
[378959836,1755085832393,-2137.5911607,0.00018364,2]
[378959856,1755085832492,-336.38993931,0.00018364,2]
[378959858,1755085832510,-361.56773111,0.00018549,2]
[378959861,1755085832529,-749.00763207,0.000189,2]
[378959864,1755085832545,-300.0,0.00019896,2]
[378959867,1755085832562,-300.0,0.00019896,2]
[378959869,1755085832578,-300.0,0.00019896,2]
[378959872,1755085832593,-300.0,0.00019896,2]
[378959875,1755085832609,-300.0,0.00019896,2]
[378959877,1755085832625,-1200.0,0.00019896,2]
[378959880,1755085832645,-1200.0,0.00019897,2]
[378959883,1755085832661,-50000.0,0.00019898,2]
[378959885,1755085832673,-14912.97342106,0.000199,2]
[378959888,1755085832692,-200.0,0.00020892,20]
[378959891,1755085832706,-200.0,0.00020892,20]
[378959894,1755085832722,-200.0,0.00020892,20]
[378959895,1755085832735,-200.0,0.00020892,20]
[378959896,1755085832751,-14912.97342092,0.00021655,2]
[378959897,1755085832765,-1947.4476238,0.00022299,2]
[378959898,1755085832779,-500.0,0.00022399,2]
[378959899,1755085832793,-150.95,0.000224,7]
[378959900,1755085832807,-16975.32356639,0.000224,2]
[378959901,1755085832821,-151.0,0.00022488,2]
[378959902,1755085832835,-151.0,0.00022488,2]
[378959903,1755085832849,-151.0,0.00022488,2]
[378959904,1755085832863,-151.0,0.00022488,2]
[378959905,1755085832876,-151.0,0.00022488,2]
[378959906,1755085832890,-1032.15214012,0.00022489,2]
[378959907,1755085832904,-597.38868144,0.00022489,2]
[378959908,1755085832918,-1032.15214012,0.00022489,2]
[378959909,1755085832932,-1032.15214012,0.00022489,2]
[378959910,1755085832946,-1032.15214012,0.00022489,2]
[378959911,1755085832961,-1032.15214012,0.00022489,2]
[378959912,1755085832975,-1032.15214012,0.00022489,2]
[378959913,1755085832989,-1032.15214012,0.00022489,2]
[378959914,1755085833003,-1032.15214012,0.00022489,2]
[378959915,1755085833018,-1032.15214012,0.00022489,2]
[378959916,1755085833032,-1032.15214012,0.00022489,2]
[378959917,1755085833047,-1032.15214012,0.00022489,2]
[378959918,1755085833062,-1032.15214012,0.00022489,2]
[378959919,1755085833076,-1032.15214012,0.00022489,2]
[378959920,1755085833091,-1032.15214012,0.00022489,2]
[378959921,1755085833106,-1032.15214012,0.00022489,2]
[378959922,1755085833123,-1032.15214012,0.00022489,2]
[378959923,1755085833137,-1032.15214012,0.00022489,2]
[378959924,1755085833152,-1032.15214012,0.00022489,2]
[378959925,1755085833166,-1032.15214012,0.00022489,2]
[378959926,1755085833181,-1083.75974714,0.00022489,2]
[378959927,1755085833196,-1083.75974714,0.00022489,2]
[378959928,1755085833211,-1083.75974714,0.00022489,2]
[378959929,1755085833227,-1083.75974714,0.00022489,2]
[378959930,1755085833242,-1083.75974714,0.00022489,2]
[378959931,1755085833256,-1083.75974714,0.00022489,2]
[378959932,1755085833271,-1083.75974714,0.00022489,2]
[378959933,1755085833286,-1083.75974714,0.00022489,2]
[378959934,1755085833301,-88898.46502182,0.0002249,2]
[378959935,1755085833380,-475.02732027,0.0002249,2]
[378960420,1755085838251,-1416.41373593,0.00022389,10]
[378960422,1755085838264,-194.56626407,0.00022389,10]
[378960424,1755085838273,-500.0,0.00022398,2]
[378960426,1755085838283,-293.61203783,0.00022398,2]
[378960428,1755085838293,-500.0,0.00022398,2]
[378960429,1755085838303,-325.7736861,0.00022398,2]
[378971423,1755087032772,-256.6029676,0.00019178,2]
[378971425,1755087032793,-409.3970324,0.00019178,2]
[378971427,1755087032803,-774.0,0.00019259,2]
[378971429,1755087032813,-300.0,0.00019259,2]
[378971431,1755087032824,-205.46334644,0.0001926,2]
[378971432,1755087032834,-821.85338577,0.0001926,2]
[378971433,1755087032846,-1849.17011799,0.0001926,2]
[378971434,1755087032855,-3287.41354309,0.0001926,2]
[378971435,1755087032864,-5136.58366108,0.0001926,2]
[378971436,1755087032874,-7396.68047196,0.0001926,2]
[378971438,1755087032883,-10067.70397572,0.0001926,2]
[378971440,1755087032893,-224.28350525,0.0001926,2]
[378971442,1755087032902,-896.23688698,0.0001926,2]
[378971445,1755087032912,-5850.45766513,0.00019276,2]
[378971447,1755087032921,-277.56475006,0.00019799,2]
[378971449,1755087032931,-1107.66269487,0.00019899,2]
[378971451,1755087032943,-92.33730513,0.00019899,2]
[378971454,1755087032953,-6674.98095947,0.000199,2]
[378971458,1755087032985,-1267.97931961,0.000199,2]
[378971621,1755087038537,-5975.81491403,0.000199,2]
[378971622,1755087038547,-20088.25135578,0.00020274,2]
[378971623,1755087038557,-499.33842138,0.0002039,2]
[378971624,1755087038566,-200.0,0.00020894,20]
[378971625,1755087038575,-200.0,0.00020894,20]
[378971626,1755087038584,-200.0,0.00020894,20]
[378971627,1755087038594,-200.0,0.00020894,20]
[378971628,1755087038604,-13918.77519285,0.00021655,2]
[378971629,1755087038613,-453.86447935,0.00022286,8]
[378971631,1755087038623,-2591.84503329,0.00022294,2]
[378971633,1755087038632,-431.5793673,0.00022356,2]
[378971634,1755087038642,-1342.48,0.00022373,10]
[378971635,1755087038652,-1118.73,0.00022373,10]
[378971636,1755087038662,-25179.28518588,0.00022383,2]
[378971695,1755087040535,-537.0600867,0.00022383,2]
[378971697,1755087040547,-19401.25712221,0.00022383,2]
[378971699,1755087040556,-500.0,0.00022393,2]
[378971701,1755087040567,-256.97125483,0.00022393,2]
[378971703,1755087040576,-500.0,0.00022393,2]
[378971705,1755087040585,-500.0,0.00022393,2]
[378971707,1755087040594,-188.46337404,0.00022393,2]
[378971709,1755087040604,-500.0,0.00022393,2]
[378971711,1755087040613,-500.0,0.00022393,2]
[378971713,1755087040622,-429.94321138,0.00022393,2]
[378971714,1755087040631,-500.0,0.00022393,2]
[378971716,1755087040641,-211.92183308,0.00022393,2]
[378971718,1755087040650,-500.0,0.00022393,2]
[378971720,1755087040661,-500.0,0.00022393,2]
[378971722,1755087040670,-500.0,0.00022393,2]
[378971724,1755087040679,-500.0,0.00022393,2]
[378971726,1755087040688,-500.0,0.00022393,2]
[378971728,1755087040698,-218.64837295,0.00022393,2]
[378971730,1755087040707,-500.0,0.00022393,2]
[378971732,1755087040716,-500.0,0.00022393,2]
[378971734,1755087040726,-500.0,0.00022393,2]
[378971736,1755087040735,-614.63573077,0.00022393,2]
[378971738,1755087040744,-500.0,0.00022393,2]
[378971740,1755087040755,-363.90445453,0.00022393,2]
[378971742,1755087040765,-500.0,0.00022393,2]
[378971744,1755087040775,-500.0,0.00022393,2]
[378971746,1755087040784,-500.0,0.00022393,2]
[378971748,1755087040794,-500.0,0.00022393,2]
[378971750,1755087040803,-500.0,0.00022393,2]
[378971752,1755087040813,-475.29190673,0.00022393,2]
[378971754,1755087040822,-500.0,0.00022393,2]
[378971756,1755087040832,-500.0,0.00022393,2]
[378971758,1755087040841,-500.0,0.00022393,2]
[378971760,1755087040852,-500.0,0.00022393,2]
[378971762,1755087040861,-500.0,0.00022393,2]
[378971764,1755087040871,-500.0,0.00022393,2]
[378971765,1755087040880,-262.36792413,0.00022393,2]
[378971767,1755087040889,-500.0,0.00022393,2]
[378971769,1755087040899,-500.0,0.00022393,2]
[378971771,1755087040909,-500.0,0.00022393,2]
[378971773,1755087040919,-500.0,0.00022393,2]
[378971775,1755087040928,-500.0,0.00022393,2]
[378971777,1755087040937,-500.0,0.00022393,2]
[378971779,1755087040946,-500.0,0.00022393,2]
[378971781,1755087040956,-500.0,0.00022393,2]
[378971783,1755087040965,-500.0,0.00022393,2]
[378971785,1755087040975,-500.0,0.00022393,2]
[378971787,1755087040984,-500.0,0.00022393,2]
[378971789,1755087040994,-500.0,0.00022393,2]
[378971791,1755087041003,-500.0,0.00022393,2]
[378971792,1755087041012,-500.0,0.00022393,2]
[378971794,1755087041021,-500.0,0.00022393,2]
[378971796,1755087041031,-500.0,0.00022393,2]
[378971798,1755087041044,-500.0,0.00022393,2]
[378971800,1755087041054,-500.0,0.00022393,2]
[378971802,1755087041063,-500.0,0.00022393,2]
[378971804,1755087041073,-500.0,0.00022393,2]
[378971806,1755087041082,-500.0,0.00022393,2]
[378971808,1755087041092,-500.0,0.00022393,2]
[378971810,1755087041102,-500.0,0.00022393,2]
[378971812,1755087041112,-500.0,0.00022393,2]
[378971814,1755087041122,-500.0,0.00022393,2]
[378971816,1755087041131,-500.0,0.00022393,2]
[378971818,1755087041141,-500.0,0.00022393,2]
[378971820,1755087041150,-500.0,0.00022393,2]
[378971822,1755087041159,-500.0,0.00022393,2]
[378971824,1755087041169,-500.0,0.00022393,2]
[378971826,1755087041178,-500.0,0.00022393,2]
[378971828,1755087041188,-500.0,0.00022393,2]
[378971830,1755087041197,-477.66098007,0.00022393,2]
[378971832,1755087041206,-500.0,0.00022393,2]
[378971834,1755087041216,-500.0,0.00022393,2]
[378971836,1755087041225,-500.0,0.00022393,2]
[378971837,1755087041236,-500.0,0.00022393,2]
[378971839,1755087041246,-500.0,0.00022393,2]
[378971841,1755087041256,-500.0,0.00022393,2]
[378971843,1755087041266,-500.0,0.00022393,2]
[378971845,1755087041275,-500.0,0.00022393,2]
[378971847,1755087041284,-11316.8823776,0.000224,2]
[378971849,1755087041294,-500.0,0.00022473,2]
[378971851,1755087041304,-500.0,0.00022488,2]
[378971853,1755087041314,-151.0,0.00022488,2]
[378971855,1755087041323,-151.0,0.00022488,2]
[378971857,1755087041332,-151.0,0.00022488,2]
[378971859,1755087041342,-151.0,0.00022488,2]
[378971861,1755087041352,-151.0,0.00022488,2]
[378971863,1755087041362,-151.0,0.00022488,2]
[378971865,1755087041371,-151.0,0.00022488,2]
[378971867,1755087041381,-151.0,0.00022489,2]
[378971869,1755087041390,-203.22819497,0.00022489,2]
[378971871,1755087041399,-151.0,0.00022489,2]
[378971872,1755087041408,-151.0,0.00022489,2]
[378971874,1755087041417,-151.0,0.00022489,2]
[378971876,1755087041426,-151.0,0.00022489,2]
[378971878,1755087041435,-151.0,0.00022489,2]
[378971880,1755087041444,-151.05588265,0.00022489,2]
[378971882,1755087041453,-151.0,0.00022489,2]
[378971884,1755087041462,-151.0,0.00022489,2]
[378971886,1755087041471,-151.10914249,0.00022489,2]
[378971888,1755087041482,-151.29623939,0.00022489,2]
[378971889,1755087041500,-151.0,0.00022489,2]
[378971891,1755087041512,-151.15780016,0.00022489,2]
[378971893,1755087041522,-267.61128999,0.00022489,2]
[378971895,1755087041531,-8982.54427332,0.0002249,2]
[378971898,1755087041551,-32234.46600709,0.0002249,2]
[378971900,1755087041562,-12578.54018714,0.0002249,2]
[378972069,1755087043471,-932.28,0.00022383,10]
[378972071,1755087043480,-6953.56918797,0.0002249,2]
[378972079,1755087043526,-2264.78112391,0.0002249,2]
[378972092,1755087043635,-1730.35263094,0.0002249,2]
[378972094,1755087043646,-1176.86477083,0.0002249,2]
[378972096,1755087043657,-402.97729121,0.0002249,2]
[378972098,1755087043668,-2503.70834191,0.0002249,2]
[378972100,1755087043680,-5782.61069268,0.0002249,2]
[378972404,1755087046609,-460.0,0.0002249,2]
[378972406,1755087046621,-1269.13818997,0.0002249,2]
[378972408,1755087046637,-538.16046026,0.0002249,2]
[378972412,1755087046665,-16836.00000008,0.0002249,2]
[378972427,1755087046875,-12786.27635864,0.0002249,2]
[378972430,1755087046891,-8120.87817416,0.0002249,2]
[378972432,1755087046903,-12233.23118006,0.0002249,2]
[378972440,1755087046964,-41994.59091314,0.0002249,2]
[378972442,1755087046973,-7435.41904716,0.000225,7]
[378972454,1755087047085,-2130.42095284,0.000225,7]
[378972456,1755087047094,-150.95,0.000225,7]
[378972458,1755087047104,-500.0,0.00022762,2]
[378972460,1755087047114,-151.0,0.00022762,2]
[378972462,1755087047123,-151.0,0.00022762,2]
[378972464,1755087047132,-198.0,0.00022762,2]
[378972466,1755087047142,-198.0,0.00022762,2]
[378972468,1755087047151,-198.0,0.00022762,2]
[378972470,1755087047160,-151.0,0.00022762,2]
[378972472,1755087047169,-39.68939826,0.00022763,2]
[378972474,1755087047181,-111.31060174,0.00022763,2]
[378972476,1755087047190,-151.0,0.00022763,2]
[378972478,1755087047199,-151.0,0.00022763,2]
[378972480,1755087047208,-2591.84503325,0.00022921,2]
[378972482,1755087047218,-200.0,0.00022937,20]
[378972484,1755087047228,-200.0,0.00022937,20]
[378972486,1755087047237,-200.0,0.00022937,20]
[378972488,1755087047247,-200.0,0.00022937,20]
[378972490,1755087047256,-320.0,0.00022937,20]
[378972492,1755087047267,-500.0,0.00022999,5]
[378972494,1755087047276,-500.0,0.00023021,2]
[378972496,1755087047289,-500.0,0.00023036,2]
[378972498,1755087047301,-151.0,0.00023036,2]
[378972500,1755087047310,-151.0,0.00023036,2]
[378972502,1755087047320,-248.00239518,0.00023036,2]
[378972504,1755087047331,-198.0,0.00023037,2]
[378972506,1755087047340,-198.0,0.00023037,2]
[378972508,1755087047350,-198.0,0.00023037,2]
[378972510,1755087047360,-294.04,0.000233,2]
[378972512,1755087047370,-396.0,0.0002331,2]
[378972514,1755087047379,-151.0,0.0002331,2]
[378972516,1755087047389,-151.0,0.0002331,2]
[378972518,1755087047399,-431.5793673,0.00023315,2]
[378972520,1755087047408,-431.5793673,0.00023315,2]
[378972522,1755087047418,-431.5793673,0.00023315,2]
[378972524,1755087047427,-430.4986908,0.00023315,2]
[378972526,1755087047440,-441.02196311,0.00023404,2]
[378972528,1755087047449,-945.7610634,0.00023404,2]
[378972530,1755087047460,-945.7610634,0.00023404,2]
[378972532,1755087047470,-945.7610634,0.00023404,2]
[378972534,1755087047479,-945.7610634,0.00023404,2]
[378972536,1755087047493,-945.7610634,0.00023404,2]
[378972538,1755087047503,-945.7610634,0.00023404,2]
[378972540,1755087047513,-945.7610634,0.00023404,2]
[378972542,1755087047522,-945.7610634,0.00023404,2]
[378972544,1755087047532,-945.7610634,0.00023404,2]
[378972546,1755087047543,-945.7610634,0.00023404,2]
[378972548,1755087047552,-945.7610634,0.00023404,2]
[378972550,1755087047565,-945.7610634,0.00023404,2]
[378972552,1755087047575,-945.7610634,0.00023404,2]
[378972554,1755087047585,-945.7610634,0.00023404,2]
[378972556,1755087047595,-945.7610634,0.00023404,2]
[378972559,1755087047605,-3187.9445493,0.00023409,2]
[378975484,1755087591053,-160.15683092,0.00019799,2]
[378975485,1755087591074,-245.28130644,0.0001988,2]
[378975486,1755087591096,-1200.0,0.00019898,2]
[378975487,1755087591119,-300.0,0.00019898,2]
[378975488,1755087591140,-300.0,0.00019899,2]
[378975489,1755087591163,-300.0,0.00019899,2]
[378975490,1755087591185,-300.0,0.00019899,2]
[378975491,1755087591206,-300.0,0.00019899,2]
[378975492,1755087591227,-1200.0,0.00019899,2]
[378975493,1755087591445,-11322.56186264,0.000199,2]
[378975496,1755087725708,-1677.0,0.000199,2]
[378975502,1755087935079,431.0,0.00025999,120]
[378975535,1755088071896,451.44295707,0.00018,2]
[378975630,1755088232992,-332.89228092,0.000189,2]
[378975631,1755088233001,-9021.71628619,0.000199,2]
[378975632,1755088233024,-2253.92202534,0.000199,2]
[378975633,1755088233092,-1068.1900017,0.000199,2]
[378975634,1755088233102,-770.51508381,0.00020794,2]
[378975647,1755088238602,-683.45739659,0.00020794,2]
[378975649,1755088238612,-200.0,0.00020894,20]
[378975650,1755088238622,-200.0,0.00020894,20]
[378975651,1755088238632,-200.0,0.00020894,20]
[378975652,1755088238642,-200.0,0.00020894,20]
[378975653,1755088238651,-12343.82831304,0.00021655,2]
[378975654,1755088238661,-600.0,0.00022878,2]
[378975655,1755088238671,-600.0,0.00022878,2]
[378975656,1755088238680,-50000.0,0.00022937,2]
[378975657,1755088238690,-200.0,0.00022937,20]
[378975658,1755088238700,-200.0,0.00022937,20]
[378975659,1755088238709,-200.0,0.00022937,20]
[378975660,1755088238719,-200.0,0.00022937,20]
[378975661,1755088238728,-320.0,0.00022937,20]
[378975662,1755088238738,-500.0,0.00022999,5]
[378975663,1755088238748,-264.64,0.000234,2]
[378975664,1755088238758,-690.47693403,0.00023408,2]
[378975665,1755088238767,-2761.90773612,0.00023408,2]
[378975666,1755088238777,-309.68273988,0.00023408,2]
[378975667,1755088238786,-1009.61121733,0.00023409,2]
[378975668,1755088238795,-163.16376992,0.00023409,2]
[378975669,1755088238805,-12343.82831304,0.00023409,2]
[378975670,1755088238815,-500.0,0.00023547,5]
[378975671,1755088238827,-776.9,0.00023581,10]
[378975673,1755088238837,-4157.74541425,0.00023591,2]
[378975675,1755088238847,-306.92976935,0.0002369,2]
[378975676,1755088238858,-500.0,0.0002369,2]